bitfinex-derivatives/quotes_ETHF0:USTF0_20241027
["timestamp","ask_amount","ask_price","bid_price","bid_amount"]
[1730044326282,0.908,2501.1,2501.0,0.40025]
[1730044327282,1.30824,2501.1,2501.0,0.40025]
[1730044327590,0.40027,2500.9,2500.8,0.40029]
[1730044328288,0.4003,2500.8,2500.7,0.40029]
[1730044328488,0.8498,2500.8,2500.7,0.40029]
[1730044328689,4.849,2500.8,2500.7,0.40029]
[1730044328892,3.9992,2500.8,2500.4,3.2078]
[1730044329194,3.2078,2500.9,2500.8,0.40029]
[1730044329394,7.60647,2500.9,2500.8,0.40029]
[1730044329791,7.2062,2500.9,2500.8,0.40029]
[1730044330194,3.2078,2500.9,2500.8,0.40029]
[1730044330988,0.82545,2501.1,2500.7,4.20855]
[1730044331189,0.82545,2501.1,2500.9,0.40027]
[1730044331190,0.908,2501.0,2500.9,0.40027]
[1730044331497,0.82545,2501.1,2501.0,0.40025]
[1730044331693,1.73345,2501.1,2501.0,0.40025]
[1730044332091,5.73185,2501.1,2501.0,0.40025]
[1730044332396,1.73344,2501.1,2501.0,0.40025]
[1730044332990,5.3316,2501.1,2500.7,4.20855]
[1730044333293,5.3316,2501.1,2500.9,0.40026]
[1730044333294,0.82158,2501.0,2500.9,0.40026]
[1730044333798,4.81998,2501.0,2500.9,0.40026]
[1730044334385,0.40029,2500.9,2500.8,0.40027]
[1730044334588,0.40033,2500.6,2500.5,0.40031]
[1730044334895,0.40035,2500.5,2500.4,0.40033]
[1730044335096,1.24355,2500.5,2500.4,0.40033]
[1730044335297,5.24275,2500.5,2500.4,0.40033]
[1730044336993,0.8432,2500.5,2500.4,0.40033]
[1730044337298,1.24353,2500.5,2500.4,0.40033]
[1730044337594,5.24273,2500.5,2500.4,0.40033]
[1730044337801,1.24353,2500.5,2500.4,0.40033]
[1730044338193,5.84325,2500.5,2499.9,1.41996]
[1730044338398,0.4004,2500.2,2500.1,0.40038]
[1730044338596,0.40044,2500.0,2499.9,0.40041]
[1730044338815,4.5297,2500.1,2499.7,1.00115]
[1730044339104,4.5297,2500.1,2499.9,0.40042]
[1730044339292,0.4315,2500.0,2499.8,0.40044]
[1730044339492,0.40044,2499.9,2499.8,0.40044]
[1730044339694,4.40044,2499.9,2499.8,0.40044]
[1730044340390,3.6217,2500.1,2499.7,1.00117]
[1730044340596,3.6217,2500.1,2500.0,0.40041]
[1730044340597,0.4139,2500.1,2500.0,0.40041]
[1730044340811,0.8143,2500.1,2500.0,0.40041]
[1730044341009,1.7223,2500.1,2500.0,0.40041]
[1730044341301,3.60817,2500.4,2500.3,0.40037]
[1730044341508,0.40039,2500.2,2500.1,0.40038]
[1730044341701,0.40037,2500.3,2500.2,0.40037]
[1730044342004,0.40037,2500.3,2500.0,1.43524]
[1730044342005,4.51616,2500.4,2500.3,0.40037]
[1730044342203,1.30836,2500.4,2500.3,0.40037]
[1730044346001,0.40038,2500.3,2500.2,0.40037]
[1730044346395,4.40038,2500.3,2500.2,0.40037]
[1730044346604,4.40037,2500.3,2500.2,0.40037]
[1730044347307,1.30836,2500.4,2500.3,0.40037]
[1730044347800,0.40039,2500.3,2500.2,0.40037]
[1730044348202,4.40039,2500.3,2500.2,0.40037]
[1730044349519,0.40041,2500.1,2500.0,0.4004]
[1730044349704,4.0,2500.3,2499.9,1.24081]
[1730044349705,0.40041,2500.0,2499.9,1.24081]
[1730044350002,0.40041,2500.0,2499.9,0.4271]
[1730044350204,0.40041,2500.0,2499.9,0.82753]
[1730044351508,0.40043,2499.9,2499.8,0.40044]
[1730044351709,0.40043,2500.0,2499.9,0.40041]
[1730044352003,0.40041,2500.1,2500.0,0.4004]
[1730044352409,4.40041,2500.1,2500.0,0.4004]
[1730044353009,4.40041,2500.1,2499.9,0.40041]
[1730044353010,0.40043,2500.0,2499.9,0.40041]
[1730044353204,0.40041,2500.1,2500.0,0.4004]
[1730044353909,0.82959,2500.2,2500.1,0.4004]
[1730044354112,1.72859,2500.2,2500.1,0.4004]
[1730044354707,1.3282,2500.2,2500.1,0.4004]
[1730044355106,5.3282,2500.2,2500.0,0.408]
[1730044355309,0.40043,2499.9,2499.8,0.40045]
[1730044355510,0.40043,2500.0,2499.9,0.40041]
[1730044355903,0.40045,2499.9,2499.8,0.40043]
[1730044356103,0.40043,2500.0,2499.9,0.40041]
[1730044356502,0.40045,2499.9,2499.8,0.40044]
[1730044356911,0.40045,2499.9,2499.8,0.40045]
[1730044359204,0.40043,2500.0,2499.9,0.40041]
[1730044359711,3.6526,2500.1,2499.7,1.40866]
[1730044359912,0.8452,2500.1,2500.0,0.40041]
[1730044360112,1.7442,2500.1,2500.0,0.40041]
[1730044361019,5.7442,2500.1,2500.0,0.40041]
[1730044361419,1.7442,2500.1,2500.0,0.40041]
[1730044362213,1.2994,2500.1,2500.0,0.40041]
[1730044362409,4.20871,2500.4,2500.2,0.40037]
[1730044362410,0.40038,2500.3,2500.2,0.40037]
[1730044362713,0.40038,2500.3,2500.1,0.40039]
[1730044362714,0.4004,2500.2,2500.1,0.40039]
[1730044363411,1.29938,2500.3,2500.2,0.40038]
[1730044365118,0.40038,2500.3,2500.2,0.40038]
[1730044365310,1.29938,2500.3,2500.2,0.40038]
[1730044369014,0.40035,2500.5,2500.2,0.40038]
[1730044369310,1.83918,2500.7,2500.6,0.40032]
[1730044369311,1.70732,2500.7,2500.6,0.40032]
[1730044369711,1.307,2500.7,2500.6,0.40032]
[1730044369908,1.7073,2500.7,2500.6,0.40032]
[1730044370313,0.8083,2500.7,2500.6,0.40032]
[1730044370520,1.7073,2500.7,2500.6,0.40032]
[1730044371315,1.7073,2500.7,2500.3,4.20872]
[1730044371316,0.40034,2500.6,2500.5,0.40032]
[1730044371521,0.40035,2500.5,2500.4,0.40034]
[1730044371717,0.40035,2500.4,2500.3,0.40036]
[1730044371916,0.84565,2500.4,2500.3,0.40036]
[1730044372916,0.4453,2500.4,2500.1,0.4068]
[1730044373123,0.83878,2500.3,2500.2,0.40037]
[1730044373917,0.4384,2500.3,2500.2,0.40037]
[1730044375020,0.83877,2500.3,2500.2,0.40037]
[1730044378822,3.6462,2500.3,2500.1,0.4269]
[1730044379024,3.6462,2500.3,2499.6,3.2078]
[1730044379025,0.4004,2500.1,2499.8,0.4336]
[1730044379331,3.6462,2500.3,2499.8,0.4336]
[1730044379541,0.40041,2500.1,2500.0,0.4004]
[1730044379837,1.29936,2500.4,2500.0,3.2078]
[1730044380144,1.29936,2500.4,2500.3,0.40037]
[1730044380927,0.899,2500.4,2500.3,0.40037]
[1730044381329,0.4003,2500.8,2500.7,0.40029]
[1730044381540,1.2993,2500.8,2500.7,0.40029]
[1730044381729,0.4003,2500.8,2500.7,0.40029]
[1730044381935,0.884,2500.8,2500.7,0.40029]
[1730044382541,0.40029,2500.8,2500.7,0.40029]
[1730044382742,1.28429,2500.8,2500.7,0.40029]
[1730044382937,0.884,2500.8,2500.7,0.40029]
[1730044383840,3.6336,2501.0,2500.9,0.40027]
[1730044384143,0.4258,2501.0,2500.9,0.40027]
[1730044384444,0.884,2501.0,2500.9,0.40027]
[1730044384942,0.40023,2501.2,2501.1,0.40024]
[1730044387837,3.9984,2501.2,2500.7,3.6311]
[1730044388044,3.9984,2501.2,2500.9,0.40026]
[1730044388045,0.40022,2501.2,2500.9,0.40026]
[1730044388342,0.40025,2501.1,2501.0,0.40025]
[1730044390342,0.40025,2501.1,2500.7,0.8709]
[1730044390343,3.9984,2501.1,2500.7,0.8709]
[1730044390537,0.40028,2500.9,2500.8,0.40028]
[1730044390841,0.40029,2500.8,2500.7,0.4003]
[1730044391037,0.884,2500.8,2500.7,0.4003]
[1730044391439,5.28349,2500.8,2500.7,0.4003]
[1730044393146,1.28429,2500.8,2500.7,0.4003]
[1730044393945,0.40032,2500.7,2500.6,0.40031]
[1730044394247,0.40032,2500.7,2500.4,0.8531]
[1730044394248,1.2843,2500.8,2500.7,0.4003]
[1730044394447,0.4228,2500.9,2500.4,0.8531]
[1730044394750,3.6422,2501.0,2500.4,0.8531]
[1730044394751,0.83466,2501.0,2500.9,0.40027]
[1730044394937,1.71866,2501.0,2500.9,0.40027]
[1730044395340,1.3184,2501.0,2500.9,0.40027]
[1730044395746,1.71865,2501.0,2500.9,0.40027]
[1730044395955,0.83465,2501.0,2500.9,0.40027]
[1730044396248,1.71865,2501.0,2500.9,0.40027]
[1730044396549,0.40027,2500.9,2500.8,0.40028]
[1730044399647,1.3184,2501.0,2500.7,0.40029]
[1730044399648,0.4003,2500.8,2500.7,0.40029]
[1730044400655,5.52686,2501.0,2500.5,0.4268]
[1730044400955,0.40033,2500.5,2500.4,0.40034]
[1730044401151,1.28433,2500.5,2500.4,0.40034]
[1730044401348,0.40037,2500.4,2500.1,1.8581]
[1730044401551,1.28417,2500.4,2500.3,0.40036]
[1730044402652,0.8838,2500.4,2500.3,0.40036]
[1730044403051,1.28415,2500.4,2500.3,0.40036]
[1730044405355,0.40038,2500.3,2500.2,0.40037]
[1730044406656,0.8838,2500.4,2500.3,0.40037]
[1730044406657,1.28416,2500.4,2500.3,0.40037]
[1730044408254,1.28416,2500.4,2500.1,1.8581]
[1730044408455,0.40038,2500.3,2500.2,0.40037]
[1730044410856,0.40038,2500.2,2500.1,1.25748]
[1730044411459,0.40038,2500.2,2500.1,0.40038]
[1730044411659,0.40043,2500.0,2499.9,0.40042]
[1730044411856,1.27243,2500.0,2499.9,0.40043]
[1730044412264,0.40043,2499.9,2499.8,1.22484]
[1730044412456,1.71363,2500.0,2499.9,0.40043]
[1730044413161,0.872,2500.0,2499.9,0.40043]
[1730044414653,0.872,2500.0,2499.9,3.60823]
[1730044414961,0.4193,2500.3,2499.9,3.60823]
[1730044415161,0.873,2500.3,2500.1,1.40139]
[1730044415358,0.873,2500.3,2500.2,0.81338]
[1730044415665,0.873,2500.3,2500.2,1.23068]
[1730044416865,0.873,2500.3,2500.2,4.43848]
[1730044417259,1.27337,2500.3,2500.2,4.43848]
[1730044417465,0.873,2500.3,2500.2,4.43848]
[1730044417664,0.40036,2500.4,2500.2,4.0381]
[1730044417868,0.40036,2500.4,2500.3,0.81957]
[1730044423162,1.71895,2500.5,2500.4,0.40035]
[1730044440178,0.4193,2500.7,2500.6,0.40032]
[1730044440386,3.2078,2500.8,2500.4,0.40035]
[1730044440683,3.2078,2500.8,2500.7,0.4003]
[1730044441084,3.60809,2500.8,2500.7,0.4003]
[1730044441776,4.0658,2500.8,2500.3,0.4192]
[1730044442084,0.40034,2500.6,2500.5,0.40032]
[1730044442983,0.40035,2500.5,2500.4,0.40033]
[1730044443184,0.83275,2500.5,2500.3,0.4404]
[1730044443384,0.4168,2500.4,2500.3,0.84077]
[1730044443785,0.83274,2500.5,2500.4,0.40035]
[1730044445683,0.4324,2500.5,2500.4,0.40035]
[1730044445985,3.60809,2500.8,2500.7,0.4003]
[1730044446183,4.46609,2500.8,2500.7,0.4003]
[1730044446880,3.60809,2500.8,2500.7,0.4003]
[1730044447080,4.0658,2500.8,2500.7,0.8154]
[1730044447280,4.0658,2500.8,2500.7,1.2274]
[1730044447586,4.46609,2500.8,2500.7,1.2274]
[1730044448376,3.2078,2500.8,2500.7,1.2274]
[1730044448676,0.858,2501.0,2500.7,0.8271]
[1730044448882,0.858,2501.0,2500.9,0.40027]
[1730044449785,0.40024,2501.1,2500.8,3.2078]
[1730044449986,0.40024,2501.1,2501.0,0.40025]
[1730044450188,4.0382,2501.2,2500.8,4.20851]
[1730044450381,1.25825,2501.1,2501.0,0.40024]
[1730044450584,0.40027,2501.0,2500.9,0.40026]
[1730044452493,1.25827,2501.0,2500.9,0.40026]
[1730044454493,0.858,2501.0,2500.9,0.40026]
[1730044454691,0.40024,2501.1,2501.0,0.40025]
[1730044454990,1.25824,2501.1,2501.0,0.40025]
[1730044455795,0.40024,2501.1,2501.0,0.40025]
[1730044456093,1.25824,2501.1,2501.0,0.40025]
[1730044458489,0.858,2501.1,2500.8,3.2078]
[1730044458691,0.40027,2501.0,2500.9,0.40026]
[1730044459495,0.40029,2500.9,2500.8,0.40027]
[1730044464792,0.40029,2500.9,2500.7,0.4151]
[1730044464793,4.0658,2501.1,2500.7,0.4151]
[1730044464993,0.40027,2501.0,2500.9,0.40025]
[1730044466203,4.0658,2501.1,2500.8,0.4192]
[1730044466204,3.2078,2501.1,2500.8,0.4192]
[1730044466403,1.23063,2501.2,2501.1,0.40024]
[1730044466601,2.08863,2501.2,2501.1,0.40024]
[1730044467795,1.2672,2501.2,2501.1,0.40024]
[1730044468205,3.2078,2501.4,2501.1,0.40024]
[1730044468403,0.858,2501.3,2501.2,0.83262]
[1730044468705,1.25821,2501.3,2501.2,1.25722]
[1730044468904,0.858,2501.3,2501.2,1.25722]
[1730044470303,1.25821,2501.3,2501.2,1.25722]
[1730044470902,0.40021,2501.3,2501.2,1.25722]
[1730044471103,1.24921,2501.3,2501.2,1.25722]
[1730044480515,1.24921,2501.3,2501.2,0.82482]
[1730044480705,0.849,2501.3,2501.0,3.2078]
[1730044480909,0.82724,2501.2,2501.1,0.40023]
[1730044488420,0.40024,2501.2,2501.1,0.40023]
[1730044491916,0.849,2501.3,2501.0,3.2078]
[1730044492217,0.40027,2501.0,2500.8,0.8362]
[1730044492421,0.40027,2501.0,2500.9,0.40025]
[1730044499019,0.81417,2501.0,2500.9,0.40025]
[1730044501227,0.81417,2501.0,2500.8,0.8362]
[1730044501228,0.4161,2501.1,2500.8,0.8362]
[1730044501420,0.846,2501.1,2501.0,0.40025]
[1730044501728,1.24624,2501.1,2501.0,0.40025]
[1730044503624,0.846,2501.1,2501.0,0.40025]
[1730044503825,1.24624,2501.1,2501.0,0.40025]
[1730044506220,0.846,2501.1,2501.0,0.40025]
[1730044507223,1.24624,2501.1,2501.0,0.40025]
[1730044510626,0.40024,2501.1,2501.0,0.40025]
[1730044513833,0.40027,2501.0,2500.9,0.40025]
[1730044514026,0.40027,2501.0,2500.9,0.52542603]
[1730044514426,0.40027,2501.0,2500.9,0.52542613]
[1730044514733,0.40027,2501.0,2500.9,0.52542585]
[1730044517037,0.40027,2501.0,2500.9,0.12517585]
[1730044517237,0.40031,2500.8,2500.7,0.40029]
[1730044517642,4.20851,2500.9,2500.5,3.6588]
[1730044517643,4.0538,2500.9,2500.8,0.40029]
[1730044517834,0.846,2500.9,2500.8,0.40029]
[1730044518739,1.2621,2501.2,2501.1,0.40024]
[1730044518939,1.66232,2501.2,2501.1,0.40024]
[1730044520031,1.2621,2501.2,2501.1,0.40024]
[1730044520235,1.66232,2501.2,2501.1,0.40024]
[1730044520847,0.846,2501.2,2501.1,0.40024]
[1730044521142,1.24622,2501.2,2501.1,0.40024]
[1730044521350,1.24622,2501.2,2501.1,3.60804]
[1730044529049,0.846,2501.2,2501.1,3.60804]
[1730044529754,1.24622,2501.2,2501.1,3.73320345]
[1730044529948,0.846,2501.2,2501.1,3.73320345]
[1730044530654,1.24622,2501.2,2501.1,3.60804]
[1730044536349,0.40024,2501.1,2501.0,0.40024]
[1730044536556,0.8806,2501.1,2500.9,1.2893]
[1730044536751,0.40025,2501.0,2500.9,1.68956]
[1730044536944,0.40025,2501.0,2500.9,1.81473668]
[1730044537556,0.40025,2501.0,2500.9,1.68956]
[1730044537861,0.40025,2501.0,2500.9,1.81473546]
[1730044539453,1.2935,2501.1,2500.9,1.41447546]
[1730044539762,1.69375,2501.1,2501.0,0.40025]
[1730044550772,5.2919,2501.1,2500.8,3.2078]
[1730044550974,0.40029,2500.9,2500.8,0.40026]
[1730044551474,0.40031,2500.8,2500.7,0.40029]
[1730044551662,4.80911,2500.8,2500.7,0.40029]
[1730044553361,4.80911,2500.8,2500.4,4.25568477]
[1730044553571,2.11303,2500.7,2500.6,0.4003]
[1730044554265,6.11223,2500.7,2500.6,0.4003]
[1730044554468,0.40033,2500.5,2500.4,3.60813]
[1730044555085,4.39953,2500.5,2500.4,3.60813]
[1730044556269,0.40033,2500.5,2500.4,3.60813]
[1730044557771,4.39953,2500.5,2500.4,0.40033]
[1730044560865,3.9992,2500.5,2500.3,0.434]
[1730044561170,0.84825,2500.4,2500.3,0.83436]
[1730044561773,0.84825,2500.4,2500.3,0.40036]
[1730044561973,0.4479,2500.4,2500.2,0.8208]
[1730044562177,0.40037,2500.3,2500.2,1.22118]
[1730044562374,0.83907,2500.3,2500.2,0.81048]
[1730044562567,0.40037,2500.3,2500.2,0.81048]
[1730044562877,3.2078,2501.0,2500.2,4.4101]
[1730044563074,0.846,2501.0,2500.9,0.40027]
[1730044563968,1.24625,2501.0,2500.9,0.40027]
[1730044564178,0.40025,2501.0,2500.9,0.40027]
[1730044564369,1.24625,2501.1,2501.0,0.40025]
[1730044564778,0.846,2501.1,2501.0,0.40025]
[1730044566169,0.846,2501.2,2501.0,3.9984]
[1730044566365,1.24623,2501.2,2501.1,0.40024]
[1730044568380,0.40026,2501.1,2501.0,0.40024]
[1730044568768,0.846,2501.2,2500.8,1.2772]
[1730044568973,1.2759,2501.2,2500.8,1.2772]
[1730044569169,0.40027,2500.9,2500.8,1.67748]
[1730044569374,0.40027,2500.9,2500.8,1.2772]
[1730044569574,0.40029,2500.8,2500.7,0.40029]
[1730044569771,0.8526,2501.0,2500.5,1.2657]
[1730044569970,0.40032,2500.7,2500.6,0.40031]
[1730044571288,0.40029,2500.9,2500.8,0.40028]
[1730044572482,0.846,2500.9,2500.8,0.40028]
[1730044572894,3.2078,2501.3,2501.2,0.40022]
[1730044573086,4.45402,2501.3,2501.2,0.40022]
[1730044574693,4.45401,2501.3,2501.2,0.40022]
[1730044575296,0.40024,2501.2,2501.1,0.40022]
[1730044581811,0.40021,2501.3,2501.2,0.40021]
[1730044582003,1.24621,2501.3,2501.2,0.40021]
[1730044589009,0.40025,2501.1,2501.0,0.40024]
[1730044592914,0.80934,2501.2,2501.1,0.40024]
[1730044594217,1.65534,2501.2,2501.1,0.40024]
[1730044594820,1.24624,2501.2,2501.1,0.40024]
[1730044595822,0.846,2501.2,2501.1,0.40024]
[1730044597013,1.24622,2501.2,2501.1,0.40024]
[1730044601226,0.846,2501.2,2501.1,0.40024]
[1730044601822,1.24622,2501.2,2501.1,0.40024]
[1730044604833,0.40025,2501.1,2501.0,0.40024]
[1730044605125,0.82185,2501.1,2501.0,0.40024]
[1730044612246,1.23325,2501.1,2501.0,0.40024]
[1730044615448,0.833,2501.1,2500.7,4.20855]
[1730044615639,0.40029,2500.9,2500.8,0.12517856]
[1730044615951,0.40031,2500.8,2500.7,0.40029]
[1730044616251,0.83821,2500.8,2500.7,0.40029]
[1730044617949,0.40032,2500.7,2500.6,0.4003]
[1730044618247,1.24632,2500.7,2500.6,0.4003]
[1730044618448,1.69352,2500.7,2500.6,0.4003]
[1730044622646,1.24632,2500.7,2500.6,0.4003]
[1730044623045,0.846,2500.7,2500.6,0.4003]
[1730044623256,0.81367,2501.0,2500.9,0.40027]
[1730044623449,0.442,2501.1,2500.7,4.20854]
[1730044623648,1.287,2501.1,2501.0,0.40025]
[1730044623950,0.845,2501.1,2501.0,0.40025]
[1730044625155,0.40024,2501.1,2501.0,0.40025]
[1730044632056,0.442,2501.3,2500.9,4.0806]
[1730044632258,1.24523,2501.2,2501.1,0.40022]
[1730044632760,1.24523,2501.2,2501.1,0.83872]
[1730044633262,0.40025,2501.1,2501.0,0.40024]
[1730044636661,0.40024,2501.2,2501.1,0.40022]
[1730044636864,0.845,2501.2,2501.1,0.40022]
[1730044637556,1.24522,2501.2,2501.1,0.40022]
[1730044644068,0.40025,2501.1,2501.0,0.40024]
[1730044645156,1.84558,2501.2,2500.8,3.2078]
[1730044645372,0.4003,2500.7,2500.6,0.80919]
[1730044645559,0.845,2500.7,2500.6,0.80919]
[1730044646366,1.2453,2500.7,2500.6,0.80919]
[1730044646757,0.845,2500.7,2500.6,0.80919]
[1730044647160,1.2453,2500.7,2500.6,0.80919]
[1730044656669,1.66826,2501.0,2500.9,0.40027]
[1730044659972,3.2078,2501.5,2500.9,3.9984]
[1730044660171,3.2078,2501.5,2501.3,0.40019]
[1730044660172,1.24522,2501.4,2501.3,0.40019]
[1730044661176,4.027,2501.5,2501.4,0.40019]
[1730044661376,4.872,2501.5,2501.4,0.40019]
[1730044661678,0.40022,2501.4,2501.3,0.40019]
[1730044663774,1.24522,2501.4,2501.3,0.40019]
[1730044673379,0.845,2501.4,2501.0,4.5095]
[1730044673581,0.40023,2501.3,2501.2,0.40021]
[1730044684781,1.24521,2501.4,2501.3,0.40021]
[1730044685384,3.2078,2501.9,2501.3,7.2054]
[1730044685586,4.152,2503.0,2501.3,7.2054]
[1730044685587,0.40009,2502.1,2502.0,0.40008]
[1730044686489,1.24409,2502.1,2502.0,0.40008]
[1730044687095,0.40009,2502.1,2502.0,0.40008]
[1730044687289,1.24409,2502.1,2502.0,0.40008]
[1730044689395,1.24409,2502.1,2501.9,1.2618]
[1730044689396,0.40009,2502.0,2501.9,1.6619]
[1730044689905,0.40009,2502.0,2501.9,0.4297]
[1730044690105,0.40009,2502.0,2501.7,3.60794]
[1730044690106,0.40013,2501.8,2501.7,3.60794]
[1730044693603,0.40013,2501.8,2501.7,0.40014]
[1730044694705,0.4231,2501.9,2501.8,0.40013]
[1730044694914,0.4001,2502.0,2501.9,0.40009]
[1730044695312,16.04398151,2502.6,2501.9,8.20488]
[1730044695519,0.40005,2502.4,2502.3,0.40003]
[1730044696013,1.66403,2502.5,2502.4,0.40003]
[1730044696214,0.42,2502.5,2502.4,0.40003]
[1730044696404,0.4,2502.6,2502.5,0.40001]
[1730044696602,0.4,2502.6,2502.5,1.28701]
[1730044696802,3.2078,2502.9,2502.5,0.887]
[1730044697006,1.24399,2502.8,2502.7,0.39997]
[1730044697812,1.24399,2502.8,2502.5,0.887]
[1730044697813,0.4,2502.7,2502.6,0.39999]
[1730044701611,0.8239,2502.7,2502.6,0.39999]
[1730044702219,0.4,2502.6,2502.5,1.287]
[1730044702419,0.4,2502.6,2502.5,0.8472]
[1730044705619,0.4239,2502.7,2502.4,0.40001]
[1730044705620,0.40003,2502.5,2502.4,0.40001]
[1730044706022,0.40003,2502.5,2502.4,4.39601]
[1730044706412,0.40003,2502.5,2502.4,0.40001]
[1730044706718,0.40003,2502.5,2502.4,4.39601]
[1730044707921,0.40003,2502.5,2502.4,0.40001]
[1730044711328,0.40001,2502.6,2502.5,0.4]
[1730044723123,1.24399,2502.7,2502.6,0.39998]
[1730044724035,0.39996,2502.9,2502.6,3.996]
[1730044724232,0.8788,2503.0,2502.7,0.8474]
[1730044724430,0.39995,2502.9,2502.8,0.39995]
[1730044724733,1.7228,2503.0,2502.7,2.26944]
[1730044724927,2.12275,2503.0,2502.9,0.39995]
[1730044725325,1.67605,2503.0,2502.9,0.39995]
[1730044731227,0.39995,2503.0,2502.9,0.39995]
[1730044732137,0.844,2503.1,2502.7,2.26944]
[1730044732138,1.24393,2503.1,2503.0,0.39994]
[1730044732340,0.39993,2503.1,2503.0,0.39994]
[1730044732733,4.0518,2503.2,2503.1,0.39992]
[1730044733040,0.84667,2503.4,2503.3,0.39989]
[1730044733930,0.4468,2503.4,2503.3,0.39989]
[1730044734439,0.84667,2503.4,2503.3,0.39989]
[1730044735636,0.4468,2503.4,2503.2,3.6587]
[1730044735837,0.39989,2503.3,2503.2,4.05859]
[1730044739829,0.4468,2503.4,2503.2,3.6587]
[1730044740033,0.84668,2503.4,2503.3,0.39989]
[1730044744245,0.4468,2503.4,2503.2,0.4509]
[1730044744551,0.4468,2503.4,2502.9,0.39994]
[1730044744552,0.39995,2503.0,2502.9,0.39994]
[1730044746945,0.39994,2503.1,2503.0,0.39992]
[1730044748344,0.8335,2503.3,2502.8,0.9999]
[1730044748646,1.65939,2503.3,2503.2,0.3999]
[1730044749043,0.81639,2503.3,2503.2,0.3999]
[1730044751747,1.68969,2503.4,2503.1,1.2805]
[1730044751949,1.68969,2503.4,2503.3,0.39989]
[1730044752745,0.84669,2503.4,2503.3,0.39989]
[1730044752949,1.68969,2503.4,2503.3,0.39989]
[1730044754247,1.2898,2503.4,2503.1,1.2805]
[1730044754446,0.39992,2503.2,2503.1,0.39992]
[1730044754655,0.39992,2503.2,2503.0,3.2078]
[1730044754656,0.8103,2503.3,2503.2,0.3999]
[1730044756947,0.39992,2503.2,2503.1,0.39991]
[1730044762655,0.8103,2503.3,2503.2,0.3999]
[1730044762956,1.68968,2503.4,2503.3,0.39989]
[1730044763550,0.39991,2503.3,2503.2,0.39989]
[1730044764555,1.2898,2503.4,2503.0,4.64783]
[1730044764854,0.84668,2503.4,2503.3,0.39989]
[1730044765057,1.68968,2503.4,2503.3,0.39989]
[1730044766346,1.2898,2503.4,2503.0,4.64783]
[1730044766547,0.3999,2503.3,2503.2,0.39989]
[1730044767258,1.2898,2503.4,2503.1,0.3999]
[1730044767259,0.39992,2503.2,2503.1,0.3999]
[1730044768458,0.39992,2503.1,2503.0,4.04792]
[1730044768654,0.4331,2503.1,2502.8,18.95818281]
[1730044768854,0.39995,2503.0,2502.9,0.39994]
[1730044774362,0.39989,2503.3,2503.1,0.39992]
[1730044774659,0.39989,2503.3,2503.2,1.2179]
[1730044774962,1.24188,2503.4,2503.3,0.39989]
[1730044775154,0.842,2503.4,2503.3,0.39989]
[1730044775354,1.24187,2503.4,2503.3,0.84429]
[1730044775964,0.842,2503.4,2503.3,0.84429]
[1730044776161,3.6344,2503.5,2503.3,0.4444]
[1730044776359,3.6344,2503.5,2503.4,0.39987]
[1730044777167,3.2078,2503.5,2503.4,0.39987]
[1730044777466,1.24185,2503.6,2503.5,0.39986]
[1730044783265,1.24184,2503.6,2503.5,0.39986]
[1730044789058,0.39987,2503.5,2503.4,0.39986]
[1730044789263,0.80847,2503.5,2503.4,0.39986]
[1730044791564,0.39987,2503.4,2503.3,0.84428]
[1730044792371,0.81427,2503.4,2503.3,0.84428]
[1730044793162,0.81427,2503.4,2503.3,0.39988]
[1730044794965,0.4144,2503.4,2503.3,0.39988]
[1730044795161,0.39988,2503.4,2503.3,0.39987]
[1730044795368,0.4086,2503.5,2503.4,0.39987]
[1730044795572,0.80846,2503.5,2503.4,0.39987]
[1730044797271,0.4086,2503.5,2503.4,0.39987]
[1730044797670,1.66325,2503.6,2503.2,1.81774]
[1730044797978,1.66325,2503.6,2503.5,0.39986]
[1730044799171,0.39985,2503.6,2503.5,0.39986]
[1730044799378,1.24185,2503.6,2503.5,0.39986]
[1730044800375,0.842,2503.6,2503.5,0.39986]
[1730044800572,1.24184,2503.6,2503.5,0.39986]
[1730044801111,1.24184,2503.6,2503.4,0.4445]
[1730044801501,0.842,2503.6,2503.4,0.4445]
[1730044801714,0.39986,2503.5,2503.4,0.4445]
[1730044802199,0.39986,2503.5,2503.4,0.84437]
[1730044803899,3.2078,2503.7,2503.6,0.39984]
[1730044804092,3.60764,2503.7,2503.6,0.39984]
[1730044804285,3.2078,2503.7,2503.4,0.4445]
[1730044804474,1.2761,2503.9,2503.6,0.39984]
[1730044804681,0.4341,2503.9,2503.8,0.39981]
[1730044804871,3.60758,2504.0,2503.9,0.39979]
[1730044805069,0.39977,2504.1,2504.0,0.39976]
[1730044805271,1.67585,2504.2,2504.1,0.39976]
[1730044805472,0.83385,2504.2,2504.1,0.39976]
[1730044805673,0.4341,2504.2,2504.1,0.39976]
[1730044806276,4.0498,2504.3,2504.2,0.39974]
[1730044806474,1.24172,2504.4,2504.0,0.99944]
[1730044806670,0.842,2504.4,2504.3,0.39973]
[1730044806881,1.24172,2504.4,2504.3,0.39972]
[1730044807186,4.44949,2504.6,2504.5,0.3997]
[1730044807383,4.44948,2504.6,2504.5,0.3997]
[1730044807574,3.2078,2504.6,2504.5,0.3997]
[1730044808180,3.2078,2504.6,2504.3,0.99932]
[1730044808181,0.842,2504.7,2504.6,0.39968]